[Event "Titled Tuesday Blitz February 22 Early 2022"]
[White "Matveeva, Olga"]
[Black "Lonoff, Marc"]
[WhiteFideId "24107018"]
[BlackFideId "2001349"]
[WhiteElo "2083"]
[BlackElo "2245"]
[Result "1/2-1/2"]
[Round "09"]
[TimeControl "180+1"]
[Date "2022.02.22"]
[WhiteClock "0:00:16"]
[BlackClock "0:01:04"]

1. e4 {[%clk 0:03:00]}  e6 {[%clk 0:02:59]} 2. d4 {[%clk 0:03:00]}  d5 {[%clk 0:02:59]} 3. Nd2 {[%clk 0:02:59]}  Nc6 {[%clk 0:02:58]} 4. Ngf3 {[%clk 0:02:54]}  Nf6 {[%clk 0:02:57]} 5. e5 {[%clk 0:02:53]}  Nd7 {[%clk 0:02:57]} 6. Nb3 {[%clk 0:02:51]}  a5 {[%clk 0:02:56]} 7. a4 {[%clk 0:02:49]}  b6 {[%clk 0:02:51]} 8. c3 {[%clk 0:02:47]}  Ba6 {[%clk 0:02:49]} 9. Bxa6 {[%clk 0:02:44]}  Rxa6 {[%clk 0:02:49]} 10. h4 {[%clk 0:02:43]}  Ra8 {[%clk 0:02:45]} 11. h5 {[%clk 0:02:43]}  h6 {[%clk 0:02:45]} 12. Nh4 {[%clk 0:02:22]}  Be7 {[%clk 0:02:41]} 13. Qg4 {[%clk 0:02:18]}  Bg5 {[%clk 0:02:23]} 14. f4 {[%clk 0:02:05]}  Bxh4+ {[%clk 0:02:22]} 15. Rxh4 {[%clk 0:02:05]}  Rg8 {[%clk 0:02:17]} 16. Rh3 {[%clk 0:02:02]}  Ne7 {[%clk 0:02:15]} 17. Qf3 {[%clk 0:01:55]}  Nf8 {[%clk 0:02:11]} 18. g4 {[%clk 0:01:51]}  Qd7 {[%clk 0:02:11]} 19. Be3 {[%clk 0:01:43]}  Kd8 {[%clk 0:02:10]} 20. Rh2 {[%clk 0:01:32]}  Kc8 {[%clk 0:02:09]} 21. Rf2 {[%clk 0:01:31]}  Kb7 {[%clk 0:02:09]} 22. Kd2 {[%clk 0:01:27]}  f5 {[%clk 0:02:02]} 23. exf6 {[%clk 0:01:15]}  gxf6 {[%clk 0:02:02]} 24. f5 {[%clk 0:01:10]}  exf5 {[%clk 0:01:59]} 25. gxf5 {[%clk 0:01:11]}  Nh7 {[%clk 0:01:42]} 26. Bxh6 {[%clk 0:01:08]}  Ng5 {[%clk 0:01:41]} 27. Bxg5 {[%clk 0:01:07]}  Rxg5 {[%clk 0:01:41]} 28. h6 {[%clk 0:00:59]}  Rh8 {[%clk 0:01:35]} 29. Qh3 {[%clk 0:00:31]}  Rxf5 {[%clk 0:01:29]} 30. Rxf5 {[%clk 0:00:28]}  Qxf5 {[%clk 0:01:28]} 31. Qxf5 {[%clk 0:00:26]}  Nxf5 {[%clk 0:01:28]} 32. Rf1 {[%clk 0:00:25]}  Nd6 {[%clk 0:01:27]} 33. Rh1 {[%clk 0:00:20]}  Rh7 {[%clk 0:01:27]} 34. Ke3 {[%clk 0:00:19]}  Rxh6 {[%clk 0:01:23]} 35. Rxh6 {[%clk 0:00:17]}  Nf5+ {[%clk 0:01:23]} 36. Kf4 {[%clk 0:00:18]}  Nxh6 {[%clk 0:01:23]} 37. Nd2 {[%clk 0:00:18]}  c5 {[%clk 0:01:22]} 38. Nf3 {[%clk 0:00:18]}  Kc6 {[%clk 0:01:20]} 39. Nh4 {[%clk 0:00:17]}  Kd6 {[%clk 0:01:17]} 40. Ng6 {[%clk 0:00:17]}  cxd4 {[%clk 0:01:15]} 41. cxd4 {[%clk 0:00:16]}  Ke6 {[%clk 0:01:14]} 42. Nf8+ {[%clk 0:00:16]}  Ke7 {[%clk 0:01:13]} 43. Ng6+ {[%clk 0:00:15]}  Kf7 {[%clk 0:01:12]} 44. Nh4 {[%clk 0:00:16]}  Ke6 {[%clk 0:01:11]} 45. Ng6 {[%clk 0:00:15]}  Nf7 {[%clk 0:01:10]} 46. Nf8+ {[%clk 0:00:15]}  Ke7 {[%clk 0:01:10]} 47. Ng6+ {[%clk 0:00:16]}  Ke6 {[%clk 0:01:09]} 48. Nf8+ {[%clk 0:00:16]}  Ke7 {[%clk 0:01:04]} 49. Ng6+ {[%clk 0:00:16]}  Ke6 {[%clk 0:01:04]} 1/2-1/2


[Site "https://www.chess.com"]

[Event "Titled Tuesday Blitz February 22 Early 2022"]
[White "Maze, Sebastien"]
[Black "Sarana, Alexey"]
[WhiteFideId "613762"]
[BlackFideId "24133795"]
[WhiteElo "2462"]
[BlackElo "2665"]
[Result "0-1"]
[Round "09"]
[TimeControl "180+1"]
[Date "2022.02.22"]
[WhiteClock "0:00:07"]
[BlackClock "0:01:07"]

1. e4 {[%clk 0:02:59]}  c5 {[%clk 0:02:59]} 2. Nf3 {[%clk 0:02:58]}  d6 {[%clk 0:03:00]} 3. Bb5+ {[%clk 0:02:57]}  Bd7 {[%clk 0:02:59]} 4. Bxd7+ {[%clk 0:02:57]}  Nxd7 {[%clk 0:02:59]} 5. O-O {[%clk 0:02:57]}  e6 {[%clk 0:02:58]} 6. Qe2 {[%clk 0:02:56]}  Be7 {[%clk 0:02:58]} 7. Rd1 {[%clk 0:02:56]}  Ngf6 {[%clk 0:02:58]} 8. d4 {[%clk 0:02:57]}  cxd4 {[%clk 0:02:57]} 9. Nxd4 {[%clk 0:02:57]}  a6 {[%clk 0:02:57]} 10. c4 {[%clk 0:02:57]}  Qc7 {[%clk 0:02:57]} 11. b3 {[%clk 0:02:56]}  O-O {[%clk 0:02:55]} 12. Bb2 {[%clk 0:02:51]}  Rfc8 {[%clk 0:02:55]} 13. Nc3 {[%clk 0:02:50]}  Qa5 {[%clk 0:02:55]} 14. Rac1 {[%clk 0:02:41]}  Ne5 {[%clk 0:02:53]} 15. f4 {[%clk 0:02:39]}  Nc6 {[%clk 0:02:53]} 16. Nxc6 {[%clk 0:02:38]}  bxc6 {[%clk 0:02:54]} 17. e5 {[%clk 0:02:26]}  Ne8 {[%clk 0:02:48]} 18. exd6 {[%clk 0:02:24]}  Nxd6 {[%clk 0:02:47]} 19. Na4 {[%clk 0:02:15]}  Nf5 {[%clk 0:02:43]} 20. g3 {[%clk 0:02:06]}  Rd8 {[%clk 0:02:39]} 21. Kg2 {[%clk 0:02:06]}  Qc7 {[%clk 0:02:39]} 22. Qe4 {[%clk 0:01:47]}  c5 {[%clk 0:02:36]} 23. Be5 {[%clk 0:01:25]}  Qa5 {[%clk 0:02:32]} 24. Bc3 {[%clk 0:01:23]}  Qc7 {[%clk 0:02:31]} 25. Be5 {[%clk 0:01:19]}  Bd6 {[%clk 0:02:31]} 26. Bc3 {[%clk 0:01:14]}  Rac8 {[%clk 0:02:05]} 27. Re1 {[%clk 0:01:14]}  h5 {[%clk 0:01:58]} 28. Rcd1 {[%clk 0:01:12]}  Be7 {[%clk 0:01:57]} 29. Be5 {[%clk 0:01:09]}  Qa5 {[%clk 0:01:56]} 30. Bc3 {[%clk 0:01:09]}  Qc7 {[%clk 0:01:56]} 31. Be5 {[%clk 0:01:09]}  Qa7 {[%clk 0:01:57]} 32. Qf3 {[%clk 0:01:04]}  g6 {[%clk 0:01:55]} 33. Kf1 {[%clk 0:00:59]}  Nd4 {[%clk 0:01:33]} 34. Qe4 {[%clk 0:00:53]}  Rd7 {[%clk 0:01:31]} 35. Bxd4 {[%clk 0:00:53]}  cxd4 {[%clk 0:01:31]} 36. Rd3 {[%clk 0:00:53]}  Rcd8 {[%clk 0:01:30]} 37. Rc1 {[%clk 0:00:52]}  Ba3 {[%clk 0:01:30]} 38. Rc2 {[%clk 0:00:52]}  Qc7 {[%clk 0:01:28]} 39. c5 {[%clk 0:00:48]}  Rd5 {[%clk 0:01:27]} 40. Rc4 {[%clk 0:00:45]}  e5 {[%clk 0:01:22]} 41. Kg2 {[%clk 0:00:28]}  f5 {[%clk 0:01:14]} 42. Qe2 {[%clk 0:00:27]}  e4 {[%clk 0:01:14]} 43. Rd1 {[%clk 0:00:26]}  d3 {[%clk 0:01:14]} 44. Qe3 {[%clk 0:00:26]}  Qc6 {[%clk 0:01:14]} 45. h3 {[%clk 0:00:14]}  a5 {[%clk 0:01:14]} 46. g4 {[%clk 0:00:14]}  hxg4 {[%clk 0:01:11]} 47. hxg4 {[%clk 0:00:14]}  d2 {[%clk 0:01:10]} 48. gxf5 {[%clk 0:00:13]}  gxf5 {[%clk 0:01:10]} 49. Kf2 {[%clk 0:00:14]}  Rd3 {[%clk 0:01:09]} 50. Qe2 {[%clk 0:00:14]}  Rf3+ {[%clk 0:01:09]} 51. Kg2 {[%clk 0:00:12]}  Qg6+ {[%clk 0:01:08]} 52. Kh1 {[%clk 0:00:11]}  Rd7 {[%clk 0:01:07]} 53. Rg1 {[%clk 0:00:07]}  Rh7+ {[%clk 0:01:08]} 54. Qh2 {[%clk 0:00:07]}  Qxg1+ {[%clk 0:01:07]} 0-1


[Site "https://www.chess.com"]

[Event "Titled Tuesday Blitz February 22 Early 2022"]
[White "Mikhailov, Viacheslav"]
[Black "Mekhitarian, Krikor Sevag"]
[WhiteFideId "4187369"]
[BlackFideId "2107660"]
[WhiteElo "2381"]
[BlackElo "2598"]
[Result "1-0"]
[Round "09"]
[TimeControl "180+1"]
[Date "2022.02.22"]
[WhiteClock "0:00:06"]
[BlackClock "0:00:07"]

1. Nf3 {[%clk 0:03:00]}  c5 {[%clk 0:02:57]} 2. g3 {[%clk 0:02:58]}  Nc6 {[%clk 0:02:52]} 3. d4 {[%clk 0:02:57]}  cxd4 {[%clk 0:02:51]} 4. Nxd4 {[%clk 0:02:58]}  g6 {[%clk 0:02:49]} 5. Bg2 {[%clk 0:02:58]}  Bg7 {[%clk 0:02:49]} 6. Nxc6 {[%clk 0:02:57]}  bxc6 {[%clk 0:02:50]} 7. O-O {[%clk 0:02:58]}  Rb8 {[%clk 0:02:51]} 8. Nc3 {[%clk 0:02:57]}  d5 {[%clk 0:02:43]} 9. Na4 {[%clk 0:02:49]}  Qa5 {[%clk 0:02:19]} 10. c4 {[%clk 0:02:47]}  Rb4 {[%clk 0:02:18]} 11. Bd2 {[%clk 0:02:17]}  Qxa4 {[%clk 0:02:13]} 12. Bxb4 {[%clk 0:02:14]}  Qxb4 {[%clk 0:02:13]} 13. cxd5 {[%clk 0:02:14]}  Nh6 {[%clk 0:01:14]} 14. dxc6 {[%clk 0:02:10]}  O-O {[%clk 0:01:15]} 15. c7 {[%clk 0:01:59]}  Qxb2 {[%clk 0:01:10]} 16. Rc1 {[%clk 0:01:58]}  Nf5 {[%clk 0:01:08]} 17. e3 {[%clk 0:01:52]}  Nd6 {[%clk 0:01:05]} 18. Qa4 {[%clk 0:01:45]}  a6 {[%clk 0:00:54]} 19. Rb1 {[%clk 0:01:37]}  Qe5 {[%clk 0:00:44]} 20. Rb8 {[%clk 0:01:29]}  Nb5 {[%clk 0:00:35]} 21. Rc1 {[%clk 0:01:16]}  Qd6 {[%clk 0:00:17]} 22. Rc6 {[%clk 0:00:57]}  Qd7 {[%clk 0:00:10]} 23. Qc2 {[%clk 0:00:44]}  Be5 {[%clk 0:00:10]} 24. h4 {[%clk 0:00:31]}  Bxc7 {[%clk 0:00:06]} 25. Rxb5 {[%clk 0:00:27]}  axb5 {[%clk 0:00:03]} 26. Rxc7 {[%clk 0:00:28]}  Qd8 {[%clk 0:00:04]} 27. h5 {[%clk 0:00:11]}  Be6 {[%clk 0:00:05]} 28. h6 {[%clk 0:00:11]}  Qd6 {[%clk 0:00:03]} 29. Qc3 {[%clk 0:00:10]}  f6 {[%clk 0:00:04]} 30. Kh2 {[%clk 0:00:07]}  Bd7 {[%clk 0:00:02]} 31. Ra7 {[%clk 0:00:05]}  b4 {[%clk 0:00:02]} 32. Qc4+ {[%clk 0:00:04]}  Be6 {[%clk 0:00:02]} 33. Qa6 {[%clk 0:00:03]}  Qxa6 {[%clk 0:00:02]} 34. Rxa6 {[%clk 0:00:04]}  Bf7 {[%clk 0:00:02]} 35. Ra7 {[%clk 0:00:04]}  Re8 {[%clk 0:00:03]} 36. Bc6 {[%clk 0:00:03]}  Rc8 {[%clk 0:00:03]} 37. Ba4 {[%clk 0:00:03]}  Rb8 {[%clk 0:00:03]} 38. Bb3 {[%clk 0:00:03]}  Bxb3 {[%clk 0:00:03]} 39. axb3 {[%clk 0:00:04]}  Kf7 {[%clk 0:00:04]} 40. Kg2 {[%clk 0:00:04]}  g5 {[%clk 0:00:05]} 41. g4 {[%clk 0:00:04]}  Rb6 {[%clk 0:00:04]} 42. Kf3 {[%clk 0:00:04]}  Re6 {[%clk 0:00:05]} 43. Rb7 {[%clk 0:00:04]}  Kg6 {[%clk 0:00:05]} 44. Rxb4 {[%clk 0:00:04]}  Kxh6 {[%clk 0:00:05]} 45. Rb8 {[%clk 0:00:05]}  Kg7 {[%clk 0:00:05]} 46. b4 {[%clk 0:00:06]}  Ra6 {[%clk 0:00:05]} 47. b5 {[%clk 0:00:06]}  Ra4 {[%clk 0:00:05]} 48. b6 {[%clk 0:00:06]}  Rb4 {[%clk 0:00:06]} 49. Ke2 {[%clk 0:00:06]}  h6 {[%clk 0:00:05]} 50. f3 {[%clk 0:00:06]}  Rb3 {[%clk 0:00:05]} 51. Kd2 {[%clk 0:00:06]}  Kg6 {[%clk 0:00:05]} 52. Kc2 {[%clk 0:00:05]}  Rb5 {[%clk 0:00:05]} 53. Kc3 {[%clk 0:00:05]}  Kf7 {[%clk 0:00:05]} 54. Kc4 {[%clk 0:00:05]}  Rb1 {[%clk 0:00:06]} 55. Kc5 {[%clk 0:00:03]}  Rc1+ {[%clk 0:00:07]} 56. Kb5 {[%clk 0:00:04]}  Rb1+ {[%clk 0:00:07]} 57. Kc6 {[%clk 0:00:04]}  Rc1+ {[%clk 0:00:06]} 58. Kb7 {[%clk 0:00:03]}  Rc3 {[%clk 0:00:06]} 59. Rh8 {[%clk 0:00:01]}  Kg7 {[%clk 0:00:05]} 60. Rc8 {[%clk 0:00:01]}  Rxe3 {[%clk 0:00:05]} 61. Rc7 {[%clk 0:00:02]}  Kf7 {[%clk 0:00:05]} 62. Kc8 {[%clk 0:00:02]}  Rxf3 {[%clk 0:00:05]} 63. b7 {[%clk 0:00:02]}  Rb3 {[%clk 0:00:06]} 64. b8=Q {[%clk 0:00:03]}  Rxb8+ {[%clk 0:00:06]} 65. Kxb8 {[%clk 0:00:04]}  f5 {[%clk 0:00:06]} 66. gxf5 {[%clk 0:00:04]}  h5 {[%clk 0:00:07]} 67. Kb7 {[%clk 0:00:04]}  Kf6 {[%clk 0:00:07]} 68. Kb6 {[%clk 0:00:03]}  h4 {[%clk 0:00:07]} 69. Kc5 {[%clk 0:00:03]}  h3 {[%clk 0:00:07]} 70. Kd4 {[%clk 0:00:04]}  Kxf5 {[%clk 0:00:07]} 71. Ke3 {[%clk 0:00:03]}  h2 {[%clk 0:00:06]} 72. Rc1 {[%clk 0:00:03]}  Kg4 {[%clk 0:00:07]} 73. Kf2 {[%clk 0:00:04]}  Kh3 {[%clk 0:00:07]} 74. Rc3+ {[%clk 0:00:04]}  Kh4 {[%clk 0:00:06]} 75. Kg2 {[%clk 0:00:05]}  e5 {[%clk 0:00:06]} 76. Kxh2 {[%clk 0:00:06]}  e4 {[%clk 0:00:07]} 77. Re3 {[%clk 0:00:06]} 1-0


[Site "https://www.chess.com"]

[Event "Titled Tuesday Blitz February 22 Early 2022"]
[White "Nakamura, Hikaru"]
[Black "Vokhidov, Shamsiddin"]
[WhiteFideId "2016192"]
[BlackFideId "14204223"]
[WhiteElo "2850"]
[BlackElo "2611"]
[Result "1-0"]
[Round "09"]
[TimeControl "180+1"]
[Date "2022.02.22"]
[WhiteClock "0:00:11"]
[BlackClock "0:00:02"]

1. Nf3 {[%clk 0:02:45]}  d5 {[%clk 0:03:00]} 2. b3 {[%clk 0:02:42]}  Nf6 {[%clk 0:03:00]} 3. Bb2 {[%clk 0:02:42]}  c6 {[%clk 0:02:59]} 4. e3 {[%clk 0:02:41]}  Bg4 {[%clk 0:02:58]} 5. d4 {[%clk 0:02:42]}  Nbd7 {[%clk 0:02:56]} 6. Nbd2 {[%clk 0:02:42]}  e6 {[%clk 0:02:56]} 7. Bd3 {[%clk 0:02:43]}  a5 {[%clk 0:02:55]} 8. a3 {[%clk 0:02:43]}  Bd6 {[%clk 0:02:54]} 9. c4 {[%clk 0:02:43]}  O-O {[%clk 0:02:53]} 10. Qc2 {[%clk 0:02:43]}  Bh5 {[%clk 0:02:47]} 11. Ne5 {[%clk 0:02:40]}  Bg6 {[%clk 0:02:40]} 12. Nxg6 {[%clk 0:02:40]}  hxg6 {[%clk 0:02:40]} 13. c5 {[%clk 0:02:26]}  Bc7 {[%clk 0:02:37]} 14. f4 {[%clk 0:02:26]}  b6 {[%clk 0:02:22]} 15. cxb6 {[%clk 0:02:13]}  Bxb6 {[%clk 0:02:23]} 16. Qxc6 {[%clk 0:02:13]}  Ng4 {[%clk 0:02:09]} 17. Ke2 {[%clk 0:01:52]}  Rc8 {[%clk 0:01:59]} 18. Qb5 {[%clk 0:01:51]}  Rb8 {[%clk 0:01:35]} 19. Qa4 {[%clk 0:01:48]}  Bc7 {[%clk 0:01:30]} 20. Rac1 {[%clk 0:01:41]}  Nb6 {[%clk 0:01:23]} 21. Qc6 {[%clk 0:01:40]}  Bd6 {[%clk 0:01:18]} 22. Nf3 {[%clk 0:01:36]}  Nc4 {[%clk 0:01:04]} 23. Bxc4 {[%clk 0:01:21]}  dxc4 {[%clk 0:01:04]} 24. Qxc4 {[%clk 0:01:22]}  Qb6 {[%clk 0:00:53]} 25. Nd2 {[%clk 0:01:17]}  Rfc8 {[%clk 0:00:47]} 26. Qd3 {[%clk 0:00:59]}  Qb7 {[%clk 0:00:45]} 27. Rxc8+ {[%clk 0:00:51]}  Rxc8 {[%clk 0:00:43]} 28. Nf3 {[%clk 0:00:52]}  Rb8 {[%clk 0:00:36]} 29. Rc1 {[%clk 0:00:48]}  Nxh2 {[%clk 0:00:36]} 30. Rc3 {[%clk 0:00:41]}  Nxf3 {[%clk 0:00:33]} 31. gxf3 {[%clk 0:00:42]}  Qe7 {[%clk 0:00:34]} 32. Qc2 {[%clk 0:00:40]}  Bxa3 {[%clk 0:00:32]} 33. Rc8+ {[%clk 0:00:36]}  Rxc8 {[%clk 0:00:32]} 34. Qxc8+ {[%clk 0:00:37]}  Kh7 {[%clk 0:00:33]} 35. Bc3 {[%clk 0:00:37]}  Bb4 {[%clk 0:00:31]} 36. Kd3 {[%clk 0:00:34]}  Bxc3 {[%clk 0:00:28]} 37. Qxc3 {[%clk 0:00:34]}  Qa7 {[%clk 0:00:22]} 38. Qc4 {[%clk 0:00:34]}  Qb7 {[%clk 0:00:20]} 39. e4 {[%clk 0:00:35]}  Qb8 {[%clk 0:00:20]} 40. Ke3 {[%clk 0:00:33]}  Qd8 {[%clk 0:00:20]} 41. d5 {[%clk 0:00:32]}  exd5 {[%clk 0:00:20]} 42. exd5 {[%clk 0:00:33]}  Qe7+ {[%clk 0:00:19]} 43. Kd3 {[%clk 0:00:33]}  Qe1 {[%clk 0:00:18]} 44. Qc3 {[%clk 0:00:29]}  Qd1+ {[%clk 0:00:17]} 45. Kc4 {[%clk 0:00:29]}  a4 {[%clk 0:00:17]} 46. b4 {[%clk 0:00:19]}  Qe2+ {[%clk 0:00:12]} 47. Kc5 {[%clk 0:00:19]}  Qa6 {[%clk 0:00:09]} 48. Qa3 {[%clk 0:00:15]}  Qc8+ {[%clk 0:00:09]} 49. Kd4 {[%clk 0:00:15]}  Qa6 {[%clk 0:00:07]} 50. Kc5 {[%clk 0:00:14]}  Qc8+ {[%clk 0:00:07]} 51. Kb5 {[%clk 0:00:09]}  Qb7+ {[%clk 0:00:06]} 52. Kc4 {[%clk 0:00:09]}  Qc7+ {[%clk 0:00:05]} 53. Kd3 {[%clk 0:00:09]}  Qxf4 {[%clk 0:00:04]} 54. Qxa4 {[%clk 0:00:10]}  Qxf3+ {[%clk 0:00:04]} 55. Kc4 {[%clk 0:00:10]}  g5 {[%clk 0:00:05]} 56. Qc2+ {[%clk 0:00:10]}  g6 {[%clk 0:00:04]} 57. Qd3 {[%clk 0:00:09]}  Qf4+ {[%clk 0:00:04]} 58. Qd4 {[%clk 0:00:09]}  Qc1+ {[%clk 0:00:04]} 59. Kb5 {[%clk 0:00:10]}  Qf1+ {[%clk 0:00:04]} 60. Kb6 {[%clk 0:00:10]}  Qf5 {[%clk 0:00:02]} 61. Kc7 {[%clk 0:00:10]}  g4 {[%clk 0:00:02]} 62. d6 {[%clk 0:00:10]}  g3 {[%clk 0:00:02]} 63. d7 {[%clk 0:00:10]}  g2 {[%clk 0:00:02]} 64. d8=Q {[%clk 0:00:11]} 1-0


[Site "https://www.chess.com"]

[Event "Titled Tuesday Blitz February 22 Early 2022"]
[White "Narayanan, Srinath"]
[Black "Zhigalko, Sergei"]
[WhiteFideId "5018420"]
[BlackFideId "13502956"]
[WhiteElo "2472"]
[BlackElo "2662"]
[Result "0-1"]
[Round "09"]
[TimeControl "180+1"]
[Date "2022.02.22"]
[WhiteClock "0:00:07"]
[BlackClock "0:00:05"]

1. d4 {[%clk 0:03:00]}  Nf6 {[%clk 0:03:00]} 2. Nf3 {[%clk 0:03:01]}  e6 {[%clk 0:02:59]} 3. Bf4 {[%clk 0:03:01]}  b6 {[%clk 0:02:57]} 4. e3 {[%clk 0:02:59]}  Bb7 {[%clk 0:02:58]} 5. Nbd2 {[%clk 0:03:00]}  Nh5 {[%clk 0:02:58]} 6. Bd3 {[%clk 0:02:59]}  Be7 {[%clk 0:02:53]} 7. O-O {[%clk 0:02:58]}  d6 {[%clk 0:02:53]} 8. Qe2 {[%clk 0:02:45]}  O-O {[%clk 0:02:51]} 9. c3 {[%clk 0:02:40]}  c5 {[%clk 0:02:47]} 10. a4 {[%clk 0:02:25]}  a6 {[%clk 0:02:44]} 11. Bg3 {[%clk 0:02:23]}  Nc6 {[%clk 0:02:37]} 12. e4 {[%clk 0:02:20]}  Nxg3 {[%clk 0:02:35]} 13. hxg3 {[%clk 0:02:19]}  cxd4 {[%clk 0:02:36]} 14. cxd4 {[%clk 0:02:20]}  Nb4 {[%clk 0:02:36]} 15. Bb1 {[%clk 0:02:20]}  a5 {[%clk 0:02:34]} 16. Qe3 {[%clk 0:02:06]}  Rc8 {[%clk 0:02:28]} 17. e5 {[%clk 0:02:02]}  dxe5 {[%clk 0:02:07]} 18. dxe5 {[%clk 0:02:03]}  Bc5 {[%clk 0:01:38]} 19. Qf4 {[%clk 0:01:59]}  Nd3 {[%clk 0:01:35]} 20. Qg4 {[%clk 0:01:51]}  g6 {[%clk 0:00:59]} 21. Ne4 {[%clk 0:01:40]}  Bxe4 {[%clk 0:00:57]} 22. Qxe4 {[%clk 0:01:41]}  Nxf2 {[%clk 0:00:36]} 23. Rxf2 {[%clk 0:01:42]}  Qd1+ {[%clk 0:00:24]} 24. Qe1 {[%clk 0:01:01]}  Bxf2+ {[%clk 0:00:18]} 25. Kxf2 {[%clk 0:01:02]}  Rc1 {[%clk 0:00:19]} 26. Qxd1 {[%clk 0:00:28]}  Rxd1 {[%clk 0:00:19]} 27. Ke2 {[%clk 0:00:29]}  Rfd8 {[%clk 0:00:16]} 28. g4 {[%clk 0:00:30]}  Rh1 {[%clk 0:00:14]} 29. Nd2 {[%clk 0:00:27]}  Rd5 {[%clk 0:00:12]} 30. Nc4 {[%clk 0:00:09]}  Rdd1 {[%clk 0:00:09]} 31. Nd2 {[%clk 0:00:09]}  Rhg1 {[%clk 0:00:07]} 32. b3 {[%clk 0:00:08]}  Rc1 {[%clk 0:00:06]} 33. Kd3 {[%clk 0:00:06]}  Rxg2 {[%clk 0:00:05]} 34. Nc4 {[%clk 0:00:04]}  Rgg1 {[%clk 0:00:05]} 35. Nd2 {[%clk 0:00:04]}  Kg7 {[%clk 0:00:04]} 36. Ke2 {[%clk 0:00:03]}  h5 {[%clk 0:00:04]} 37. gxh5 {[%clk 0:00:03]}  gxh5 {[%clk 0:00:05]} 38. Ke3 {[%clk 0:00:03]}  h4 {[%clk 0:00:05]} 39. Ra2 {[%clk 0:00:03]}  Rce1+ {[%clk 0:00:04]} 40. Kf4 {[%clk 0:00:02]}  Rxb1 {[%clk 0:00:04]} 41. Nxb1 {[%clk 0:00:03]}  Rxb1 {[%clk 0:00:04]} 42. Rg2+ {[%clk 0:00:04]}  Kf8 {[%clk 0:00:05]} 43. Kg5 {[%clk 0:00:03]}  Rxb3 {[%clk 0:00:04]} 44. Kxh4 {[%clk 0:00:04]}  Rb4+ {[%clk 0:00:04]} 45. Kg5 {[%clk 0:00:05]}  Rxa4 {[%clk 0:00:04]} 46. Rc2 {[%clk 0:00:06]}  Kg7 {[%clk 0:00:03]} 47. Rc6 {[%clk 0:00:04]}  Re4 {[%clk 0:00:03]} 48. Rxb6 {[%clk 0:00:04]}  Rxe5+ {[%clk 0:00:03]} 49. Kf4 {[%clk 0:00:05]}  Rf5+ {[%clk 0:00:04]} 50. Ke4 {[%clk 0:00:05]}  Kf6 {[%clk 0:00:04]} 51. Rb2 {[%clk 0:00:05]}  Re5+ {[%clk 0:00:04]} 52. Kd4 {[%clk 0:00:05]}  Rf5 {[%clk 0:00:05]} 53. Rh2 {[%clk 0:00:05]}  a4 {[%clk 0:00:05]} 54. Ke4 {[%clk 0:00:06]}  a3 {[%clk 0:00:05]} 55. Ra2 {[%clk 0:00:07]}  Ra5 {[%clk 0:00:05]} 56. Kd4 {[%clk 0:00:07]}  Ke7 {[%clk 0:00:05]} 0-1


[Site "https://www.chess.com"]

[Event "Titled Tuesday Blitz February 22 Early 2022"]
[White "Nesterov, Arseniy"]
[Black "Gabdrakhmanov, Azat"]
[WhiteFideId "24198455"]
[BlackFideId "34189197"]
[WhiteElo "2489"]
[BlackElo "2279"]
[Result "1-0"]
[Round "09"]
[TimeControl "180+1"]
[Date "2022.02.22"]
[WhiteClock "0:00:08"]
[BlackClock "0:00:01"]

1. d4 {[%clk 0:03:00]}  Nf6 {[%clk 0:02:59]} 2. c4 {[%clk 0:03:01]}  g6 {[%clk 0:03:00]} 3. Nc3 {[%clk 0:03:01]}  Bg7 {[%clk 0:03:01]} 4. e4 {[%clk 0:03:01]}  O-O {[%clk 0:03:02]} 5. Be2 {[%clk 0:03:01]}  d6 {[%clk 0:03:02]} 6. Be3 {[%clk 0:03:02]}  e5 {[%clk 0:03:02]} 7. d5 {[%clk 0:03:02]}  Na6 {[%clk 0:03:02]} 8. g4 {[%clk 0:03:02]}  Nc5 {[%clk 0:03:03]} 9. f3 {[%clk 0:03:03]}  a5 {[%clk 0:03:03]} 10. h4 {[%clk 0:03:03]}  c6 {[%clk 0:03:03]} 11. h5 {[%clk 0:03:02]}  cxd5 {[%clk 0:03:03]} 12. cxd5 {[%clk 0:03:02]}  Bd7 {[%clk 0:03:03]} 13. Qd2 {[%clk 0:03:00]}  Qb8 {[%clk 0:02:47]} 14. Nh3 {[%clk 0:02:56]}  b5 {[%clk 0:02:45]} 15. Nf2 {[%clk 0:02:54]}  b4 {[%clk 0:02:43]} 16. Ncd1 {[%clk 0:02:54]}  Bb5 {[%clk 0:02:39]} 17. Rc1 {[%clk 0:02:48]}  Bxe2 {[%clk 0:02:38]} 18. Qxe2 {[%clk 0:02:48]}  Nfd7 {[%clk 0:02:37]} 19. Nd3 {[%clk 0:02:36]}  Rc8 {[%clk 0:02:23]} 20. Nxc5 {[%clk 0:02:31]}  Nxc5 {[%clk 0:02:17]} 21. Nf2 {[%clk 0:02:13]}  b3 {[%clk 0:01:48]} 22. a3 {[%clk 0:01:54]}  Na4 {[%clk 0:01:46]} 23. O-O {[%clk 0:01:53]}  Qb7 {[%clk 0:01:39]} 24. Nd3 {[%clk 0:01:42]}  Bf6 {[%clk 0:01:33]} 25. h6 {[%clk 0:01:11]}  Bd8 {[%clk 0:01:31]} 26. Kg2 {[%clk 0:00:59]}  Bb6 {[%clk 0:01:25]} 27. Qd2 {[%clk 0:00:49]}  Bxe3 {[%clk 0:01:23]} 28. Qxe3 {[%clk 0:00:49]}  Rc2+ {[%clk 0:01:22]} 29. Rf2 {[%clk 0:00:27]}  Rxc1 {[%clk 0:01:17]} 30. Qxc1 {[%clk 0:00:21]}  Qc8 {[%clk 0:01:08]} 31. Qg5 {[%clk 0:00:20]}  Qd8 {[%clk 0:01:08]} 32. Qxd8+ {[%clk 0:00:08]}  Rxd8 {[%clk 0:01:09]} 33. Rf1 {[%clk 0:00:08]}  Rc8 {[%clk 0:00:33]} 34. Rc1 {[%clk 0:00:08]}  Rxc1 {[%clk 0:00:27]} 35. Nxc1 {[%clk 0:00:09]}  Nxb2 {[%clk 0:00:28]} 36. Nxb3 {[%clk 0:00:10]}  a4 {[%clk 0:00:23]} 37. Na5 {[%clk 0:00:08]}  Kf8 {[%clk 0:00:20]} 38. Kf2 {[%clk 0:00:08]}  Nd3+ {[%clk 0:00:17]} 39. Ke3 {[%clk 0:00:08]}  Nc5 {[%clk 0:00:16]} 40. Nc4 {[%clk 0:00:07]}  Ke7 {[%clk 0:00:17]} 41. g5 {[%clk 0:00:04]}  Nb3 {[%clk 0:00:14]} 42. Nb2 {[%clk 0:00:02]}  Nc5 {[%clk 0:00:12]} 43. Nc4 {[%clk 0:00:02]}  Nb3 {[%clk 0:00:13]} 44. f4 {[%clk 0:00:03]}  exf4+ {[%clk 0:00:11]} 45. Kxf4 {[%clk 0:00:04]}  Nc5 {[%clk 0:00:07]} 46. e5 {[%clk 0:00:04]}  dxe5+ {[%clk 0:00:05]} 47. Kxe5 {[%clk 0:00:05]}  Nd3+ {[%clk 0:00:05]} 48. Ke4 {[%clk 0:00:05]}  Nc5+ {[%clk 0:00:05]} 49. Kd4 {[%clk 0:00:06]}  Nb3+ {[%clk 0:00:06]} 50. Ke5 {[%clk 0:00:06]}  Nc1 {[%clk 0:00:04]} 51. d6+ {[%clk 0:00:07]}  Kd7 {[%clk 0:00:05]} 52. Kf6 {[%clk 0:00:07]}  Ke8 {[%clk 0:00:01]} 53. Kg7 {[%clk 0:00:07]}  Nd3 {[%clk 0:00:01]} 54. Kxh7 {[%clk 0:00:08]} 1-0


[Site "https://www.chess.com"]